Workbook

Sheet Summary
A1: Red Light Cameras provided by
A2: American Traffic Solutions
A3: Red Light Cameras
A4: Revenue
A5: Number of Cameras | C5: 4
A7: Amount of Revenue Generated from Cameras | C7: =+Detail!E15 -> 59520
A8: School Zone Cameras
A9: Revenue
A10: Number of Cameras | C10: 2
A13: Amount of Revenue Generated from Cameras | C13: =+Detail!C28 -> 45360
A15: Total Monthly Revenue | B15: 001 3821 234 4293 | C15: =C13+C7 -> 104880
A17: Expenses
A19: American Traffic Solutions Monthly fee per Camera | B19: 001 5821 234 4931 | C19: 28500
A21: American Traffic Solutions per ticket charge | B21: 001 5821 234 4930 | C21: 9000
A23: Training on review of cameras and tickets-One time charge | B23: 001 5821 234 4301 | C23: 8000
A25: Software Maineneance -Once a year | B25: 001 5821 234 4806 | C25: 7000
A27: Computer Hardware-One time start up costs | B27: 001 5821 234 3504 | C27: 8000
A29: Total Monthly Expenses | C29: =SUM(C19:C27) -> 60500
A32: Revenue - Annual | C32: =C15*12 -> 1258560
A33: Expenses - Annual | C33: =C29*12 -> 726000
A35: Net Revenue | C35: =C32-C33 -> 532560

Sheet Detail
A1: Red Light Cameras provided by
A2: American Traffic Solutions
A3: Red Light Cameras
A4: Revenue
A5: Number of Cameras | B5: 1 | C5: 2 | D5: 3 | E5: 4
A7: Average number of Violations captured per day | B7: 10 | C7: 20 | D7: 30 | E7: 40
A9: Average number of violations paid per day | B9: 4 | C9: 8 | D9: 12 | E9: 16
A11: Average number of violations paid per month(based on a 30 day month) | B11: 120 | C11: 240 | D11: 360 | E11: 480
A13: Amount of fine for running a red light | B13: 124 | C13: 124 | D13: 124 | E13: 124
A15: Amount of Revenue Generated from Cameras | B15: =B13*B11 -> 14880 | C15: =C13*C11 -> 29760 | D15: =D13*D11 -> 44640 | E15: =E13*E11 -> 59520 | F15: =E15 -> 59520
A16: School Zone Cameras
A17: Revenue
A18: Number of Cameras | B18: 1 | C18: 2
A20: Average number of Violations captured per day | B20: 10 | C20: 20
A22: Average number of violations paid per day | B22: 5 | C22: 10
A24: Average number of violations paid per month(based on a 30 day month) | B24: 120 | C24: 240
A26: Amount of fine for running a red light | B26: 189 | C26: 189
A28: Amount of Revenue Generated from Cameras | B28: =B26*B24 -> 22680 | C28: =C26*C24 -> 45360 | F28: =C28 -> 45360
A30: Total Monthly Revenue | F30: =F15+F28 -> 104880 | G30: =F30*12 -> 1258560 | H30: 001-5821 234 4293
A31: Expenses
A32: Number of Cameras | B32: 6
A34: American Traffic Solutions Monthly fee per Camera | B34: 4750 | F34: =B34*B32 -> 28500 | H34: 001-5821 234 4931
A36: American Traffic Solutions per ticket charge | B36: 5 | C36: 1800 | F36: =C36*B36 -> 9000 | H36: 001-5821 234 4930
A38: Training on review of cameras and tickets-One time charge | B38: 2 | C38: 4000 | F38: 8000 | H38: 001-5821 234 4301
A40: Software Maineneance -Once a year | B40: 2 | C40: 3500 | F40: =C40*B40 -> 7000 | H40: 001 5821 234 4806
A42: Computer Hardware for one time startup costs- | B42: 2 | C42: 4000 | F42: =C42*B42 -> 8000 | H42: 001 5821 234 3504
A44: Total Monthly Expenses | F44: =SUM(F34:F42) -> 60500 | G44: =F44*12 -> 726000
A46: Net Revenue | G46: =G30-G44 -> 532560

Sheet Cashflow
C5: Number | D5: Cost | E5: Jan | F5: Feb | G5: Mar | H5: Apr | I5: May | J5: Jun | K5: Jul | L5: Aug | M5: Sep | N5: Oct | O5: Nov | P5: Dec | Q5: Total
A6: Revenue | H6: warnings | Q6: =SUM(E6:P6) -> 0
B7: Cameras (10 per day & 40% collection) | C7: 6 | I7: =+(Detail!B15*4)+(Detail!B28*2) -> 104880 | J7: =+I7 -> 104880 | K7: =+J7 -> 104880 | L7: 104880 | M7: 104880 | N7: 104880 | O7: 104880 | P7: 104880 | Q7: =SUM(E7:P7) -> 839040
A10: Expense
B11: Camera Fee ($4,750 per camera) | C11: 6 | D11: 4750 | H11: =+C11*D11 -> 28500 | I11: =+H11 -> 28500 | J11: =+I11 -> 28500 | K11: =+J11 -> 28500 | L11: 28500 | M11: 28500 | N11: 28500 | O11: 28500 | P11: 28500 | Q11: =SUM(E11:P11) -> 256500
B12: Per ticket charge ($5 x 10 per day per camera) | D12: 5 | H12: =10*30*6*5 -> 9000 | I12: =+H12 -> 9000 | J12: =+I12 -> 9000 | K12: =+J12 -> 9000 | L12: 9000 | M12: 9000 | N12: 9000 | O12: 9000 | P12: 9000 | Q12: 81000
B13: Training (one time) | D13: 4000 | G13: =+D13 -> 4000 | Q13: 4000
B14: Software Maintenance (per year) | D14: 7000 | G14: 7000 | Q14: 7000
B15: Police hardware for ticket review | Q15: 0
B16: Kiosk
B17: Courtroom Computer Hardware & AV Equipment | D17: 20000 | G17: 20000 | Q17: =SUM(E17:P17) -> 20000
B18: Patrol (20 hours / month) | C18: 0.12 | D18: 100000 | H18: =+$D$18/12*$C$18 -> 1000 | I18: =+H18 -> 1000 | J18: =+I18 -> 1000 | K18: 1000 | L18: 1000 | M18: 1000 | N18: 1000 | O18: 1000 | P18: 1000 | Q18: 9000
B19: Prosecutor (20 hours / month) | C19: 0.12 | D19: 100000 | H19: =+$D$19/12*$C$19 -> 1000 | I19: =+H19 -> 1000 | J19: =+I19 -> 1000 | K19: 1000 | L19: 1000 | M19: 1000 | N19: 1000 | O19: 1000 | P19: 1000 | Q19: 9000
B20: Court processor (20 hours / month) | C20: 1 | D20: 66000 | H20: =+$D$20/12*$C$20 -> 5500 | I20: =+H20 -> 5500 | J20: 5500 | K20: 5500 | L20: 5500 | M20: 5500 | N20: 5500 | O20: 5500 | P20: 5500 | Q20: 49500
B21: Judge Pro-tem (20 hours / month) | C21: 0.12 | D21: 152991 | H21: =+$D$21/12*$C$21 -> 1529.91 | I21: =+H21 -> 1529.91 | J21: =+I21 -> 1529.91 | K21: 1529.91 | L21: 1529.91 | M21: 1529.91 | N21: 1529.91 | O21: 1529.91 | P21: 1529.91 | Q21: 13769.19
B23: Printing & forms | G23: 1000 | H23: =+G23 -> 1000 | I23: =+H23 -> 1000 | J23: 1000 | K23: 1000 | L23: 1000 | M23: 1000 | N23: 1000 | O23: 1000 | P23: 1000 | Q23: =SUM(E23:P23) -> 10000
B24: Postage | D24: =10*30*6*0.45 -> 810 | H24: =+D24 -> 810 | I24: =+H24 -> 810 | J24: 810 | K24: 810 | L24: 810 | M24: 810 | N24: 810 | O24: 810 | P24: 810 | Q24: 7290
B25: Misc | G25: 500 | H25: =+G25 -> 500 | I25: =+H25 -> 500 | J25: 500 | K25: 500 | L25: 500 | M25: 500 | N25: 500 | O25: 500 | P25: 500 | Q25: 5000
B26: Delinquency Fee | C26: 0.3 | Q26: 0
B27: ITSD Staff (60 hours) | D27: 2000 | G27: 250 | H27: 250 | I27: 187.5 | J27: =+I27 -> 187.5 | K27: =+J27 -> 187.5 | L27: 187.5 | M27: 187.5 | N27: 187.5 | O27: 187.5 | P27: 187.5 | Q27: 2000
B28: Accounting | Q28: 0
B29: Traffic Staff | Q29: 0
A30: SUBTOTAL EXPENSES | E30: =SUM(E11:E29) -> 0 | F30: =SUM(F11:F29) -> 0 | G30: =SUM(G11:G29) -> 32750 | H30: =SUM(H11:H29) -> 49089.91 | I30: 49027.41 | J30: 49027.41 | K30: 49027.41 | L30: 49027.41 | M30: 49027.41 | N30: 49027.41 | O30: 49027.41 | P30: 49027.41 | Q30: 474059.19
B32: Net | E32: =+E7-E30 -> 0 | F32: =+F7-F30 -> 0 | G32: -32750 | H32: =+H7-H30 -> -49089.91 | I32: =+I7-I30 -> 55852.59 | J32: 55852.59 | K32: 55852.59 | L32: 55852.59 | M32: 55852.59 | N32: 55852.59 | O32: 55852.59 | P32: 55852.59 | Q32: =SUM(E32:P32) -> 364980.81
